bitfinex/quotes_SOLUSD_20241102
["timestamp","ask_amount","ask_price","bid_price","bid_amount"]
[1730548303228,6.0042,166.55,166.49,15.0151]
[1730548303229,11.09694677,166.54,166.49,32.11834677]
[1730548304614,6.0049,166.53,166.49,21.0214]
[1730548305229,17.10184677,166.53,166.49,15.0151]
[1730548307637,17.10184677,166.53,166.47,23.36311924]
[1730548307933,11.09694677,166.52,166.47,23.36311924]
[1730548308547,11.09694677,166.5,166.47,6.25937247]
[1730548308733,11.09694677,166.49,166.45,15.0187]
[1730548309232,11.09694677,166.48,166.45,15.0187]
[1730548309921,17.10324677,166.49,166.45,15.0187]
[1730548310542,11.09694677,166.48,166.45,15.0187]
[1730548310709,11.09694677,166.48,166.43,12.50218458]
[1730548311046,11.09694677,166.47,166.43,6.25898458]
[1730548311213,11.09694677,166.46,166.43,6.25898458]
[1730548311536,11.09694677,166.45,166.43,6.25898458]
[1730548311913,11.09694677,166.45,166.4,17.10634677]
[1730548312230,11.09694677,166.42,166.39,15.0247]
[1730548312738,17.10584677,166.42,166.38,0.90137578]
[1730548313122,11.09694677,166.41,166.38,0.90137578]
[1730548313426,11.09694677,166.4,166.38,0.90137578]
[1730548314214,11.09694677,166.4,166.36,15.0274]
[1730548314517,11.09694677,166.39,166.34,23.36455626]
[1730548314727,11.09694677,166.4,166.35,11.09694677]
[1730548315418,17.10654677,166.4,166.35,11.09694677]
[1730548316327,11.09694677,166.39,166.34,17.35285626]
[1730548316718,11.09694677,166.38,166.34,6.25590949]
[1730548317136,11.09694677,166.39,166.34,17.35285626]
[1730548319139,11.09694677,166.4,166.35,11.09694677]
[1730548319321,11.09694677,166.42,166.37,11.09694677]
[1730548320740,17.10584677,166.42,166.37,11.09694677]
[1730548322127,17.10584677,166.42,166.36,11.09694677]
[1730548323021,17.10584677,166.42,166.36,17.10794677]
[1730548324032,11.09694677,166.42,166.37,11.09694677]
[1730548324536,11.09694677,166.41,166.36,32.13554677]
[1730548327144,11.09694677,166.41,166.36,15.0276]
[1730548328242,11.09694677,166.41,166.36,21.0386]
[1730548330625,11.09694677,166.42,166.36,26.12454677]
[1730548331433,11.09694677,166.42,166.37,11.09694677]
[1730548331625,11.09694677,166.43,166.38,11.09694677]
[1730548331826,11.09694677,166.44,166.39,11.09694677]
[1730548332028,11.09694677,166.45,166.39,11.09694677]
[1730548333349,11.09694677,166.45,166.4,11.09694677]
[1730548336847,17.10434677,166.46,166.41,11.09694677]
[1730548337047,70.0,166.48,166.41,11.09694677]
[1730548337048,11.09694677,166.47,166.41,11.09694677]
[1730548337546,17.10404677,166.47,166.41,11.09694677]
[1730548337950,17.10404677,166.47,166.42,11.09694677]
[1730548339245,17.10404677,166.47,166.41,11.09694677]
[1730548339451,11.09694677,166.46,166.41,11.09694677]
[1730548339637,11.09694677,166.46,166.4,17.10624677]
[1730548340751,17.10444677,166.46,166.4,17.10624677]
[1730548341154,11.09694677,166.45,166.4,17.10624677]
[1730548341651,11.09694677,166.45,166.39,26.12114677]
[1730548341950,11.09694677,166.44,166.38,17.10694677]
[1730548342154,11.09694677,166.43,166.38,6.01]
[1730548342455,11.09694677,166.42,166.36,32.13494677]
[1730548342666,11.09694677,166.41,166.36,32.13494677]
[1730548343535,11.09694677,166.41,166.36,21.038]
[1730548343740,11.09694677,166.39,166.35,6.0114]
[1730548343939,11.09694677,166.39,166.34,23.36234366]
[1730548344142,11.09694677,166.4,166.35,11.09694677]
[1730548344646,11.09694677,166.4,166.34,23.36234366]
[1730548344855,11.09694677,166.39,166.34,23.36234366]
[1730548345341,6.0097,166.4,166.36,11.09694677]
[1730548347850,17.10624677,166.41,166.36,11.09694677]
[1730548348753,11.09694677,166.4,166.35,11.09694677]
[1730548349532,11.09694677,166.39,166.34,23.36234366]
[1730548349964,11.09694677,166.4,166.34,23.36234366]
[1730548350256,11.09694677,166.38,166.34,6.25369689]
[1730548350461,11.09694677,166.38,166.33,26.12704677]
[1730548350637,11.09694677,166.38,166.33,15.0301]
[1730548350839,11.09694677,166.37,166.33,15.0301]
[1730548351060,11.09694677,166.37,166.32,11.09694677]
[1730548352958,27.17194677,166.4,166.35,11.09694677]
[1730548353257,23.776884,166.4,166.35,11.09694677]
[1730548353935,11.09694677,166.41,166.35,11.09694677]
[1730548354536,17.10624677,166.41,166.35,17.10814677]
[1730548356342,29.8,166.36,166.35,17.10814677]
[1730548356542,17.10624677,166.41,166.35,17.10814677]
[1730548356834,17.10624677,166.41,166.36,11.09694677]
[1730548357035,11.09694677,166.42,166.37,11.09694677]
[1730548357443,29.8,166.38,166.37,11.09694677]
[1730548361760,29.8,166.38,166.36,17.10774677]
[1730548366061,29.8,166.38,166.35,11.09694677]
[1730548366270,29.8,166.38,166.35,21.0399]
[1730548366562,29.8,166.38,166.36,11.09694677]
[1730548367975,29.8,166.38,166.36,17.10784677]
[1730548368268,29.8,166.38,166.36,6.0109]
[1730548369546,29.8,166.38,166.35,15.0285]
[1730548370969,11.09694677,166.37,166.32,26.12784677]
[1730548371167,11.09694677,166.37,166.32,32.14034677]
[1730548374049,17.10764677,166.37,166.32,32.14034677]
[1730548374457,11.09694677,166.36,166.32,21.0434]
[1730548374663,11.09694677,166.36,166.32,15.0309]
[1730548375173,17.10764677,166.37,166.32,26.12784677]
[1730548376765,11.09694677,166.36,166.32,15.0309]
[1730548376966,17.10764677,166.37,166.32,26.12784677]
[1730548377955,11.09694677,166.36,166.32,15.0309]
[1730548380982,11.09694677,166.35,166.3,17.11004677]
[1730548381585,11.09694677,166.36,166.31,11.09694677]
[1730548382663,17.10814677,166.36,166.31,11.09694677]
[1730548384379,11.09694677,166.35,166.3,17.11004677]
[1730548385565,11.09694677,166.34,166.29,26.13074677]
[1730548385770,11.09694677,166.34,166.29,32.14424677]
[1730548385971,11.09694677,166.35,166.3,11.09694677]
[1730548386165,11.09694677,166.34,166.29,32.14424677]
[1730548386776,11.09694677,166.35,166.3,17.10994677]
[1730548388061,11.09694677,166.34,166.29,26.13074677]
[1730548388273,11.09694677,166.35,166.3,11.09694677]
[1730548388470,11.09694677,166.34,166.3,11.09694677]
[1730548388674,11.09694677,166.33,166.29,15.0338]
[1730548390486,11.09694677,166.33,166.29,21.0473]
[1730548396095,11.09694677,166.32,166.29,15.0338]
[1730548396290,11.09694677,166.32,166.28,6.0139]
[1730548396595,11.09694677,166.31,166.28,6.0139]
[1730548396789,6.0121,166.33,166.27,6.26824499]
[1730548396790,11.09694677,166.3,166.27,6.26824499]
[1730548399183,11.09694677,166.29,166.27,6.26824499]
[1730548400484,11.09694677,166.28,166.27,6.26824499]
[1730548401294,34.87383077,166.28,166.27,6.26824499]
[1730548401497,34.87383077,166.28,166.23,21.0548]
[1730548401886,11.09694677,166.27,166.23,15.0391]
[1730548402281,11.09694677,166.26,166.23,15.0391]
[1730548402775,11.09694677,166.27,166.23,15.0391]
[1730548403181,23.776884,166.26,166.23,15.0391]
[1730548403381,34.87383077,166.26,166.23,15.0391]
[1730548403682,23.776884,166.28,166.23,26.13604677]
[1730548404085,23.776884,166.28,166.23,32.15174677]
[1730548407090,23.776884,166.28,166.24,11.09694677]
[1730548407287,23.776884,166.28,166.23,26.13604677]
[1730548408878,23.776884,166.28,166.23,32.15174677]
[1730548410781,11.09694677,166.24,166.2,21.30928325]
[1730548411102,11.09694677,166.22,166.2,21.30928325]
[1730548411990,11.09694677,166.23,166.2,21.30928325]
[1730548412304,11.09694677,166.24,166.2,21.30928325]
[1730548413492,11.09694677,166.24,166.2,27.32608325]
[1730548415509,23.776884,166.24,166.2,38.42303002]
[1730548416116,11.09694677,166.22,166.2,6.26758325]
[1730548416283,11.09694677,166.21,166.18,6.0175]
[1730548416892,11.09694677,166.22,166.18,6.0175]
[1730548417509,11.09694677,166.22,166.18,21.0614]
[1730548418706,11.09694677,166.21,166.18,15.0439]
[1730548418892,11.09694677,166.2,166.18,15.0439]
[1730548419422,11.09694677,166.2,166.16,12.28757635]
[1730548420008,11.09694677,166.19,166.16,12.28757635]
[1730548422315,11.09694677,166.19,166.16,27.33327635]
[1730548422522,11.09694677,166.19,166.16,21.0639]
[1730548423908,11.09694677,166.18,166.16,21.0639]
[1730548424420,11.09694677,166.18,166.16,15.0457]
[1730548430701,11.09694677,166.17,166.16,15.0457]
[1730548431604,11.09694677,166.18,166.16,15.0457]
[1730548436512,11.09694677,166.17,166.12,11.09694677]
[1730548436827,11.09694677,166.17,166.12,32.16594677]
[1730548437626,11.09694677,166.16,166.12,21.069]
[1730548438414,11.09694677,166.15,166.12,21.069]
[1730548439523,11.09694677,166.15,166.12,15.0493]
[1730548440713,11.09694677,166.14,166.12,15.0493]
[1730548440916,11.09694677,166.13,166.12,15.0493]
[1730548442233,11.09694677,166.13,166.1,6.0204]
[1730548442407,11.09694677,166.12,166.1,6.0204]
[1730548443030,11.09694677,166.11,166.08,15.0521]
[1730548443327,11.09694677,166.11,166.09,15.052]
[1730548446314,11.09694677,166.12,166.09,15.052]
[1730548448614,76.0188,166.15,166.09,15.052]
[1730548448615,11.09694677,166.11,166.09,15.052]
[1730548453328,11.09694677,166.12,166.09,15.052]
[1730548457434,11.09694677,166.13,166.09,15.052]
[1730548457635,11.09694677,166.13,166.09,21.0728]
[1730548457942,11.09694677,166.12,166.09,21.0728]
[1730548463144,11.09694677,166.13,166.09,21.0728]
[1730548463339,81.09694677,166.15,166.1,11.09694677]
[1730548463643,11.09694677,166.17,166.12,11.09694677]
[1730548464217,70.0,166.18,166.11,11.09694677]
[1730548464218,11.09694677,166.16,166.11,11.09694677]
[1730548464538,11.09694677,166.14,166.1,6.2612]
[1730548464833,11.09694677,166.14,166.11,21.0703]
[1730548467338,11.09694677,166.14,166.11,15.0502]
[1730548468118,11.09694677,166.15,166.11,15.0502]
[1730548470941,11.09694677,166.14,166.11,15.0502]
[1730548471325,11.09694677,166.13,166.11,15.0502]
[1730548472232,23.776884,166.14,166.11,15.0502]
[1730548472425,11.09694677,166.13,166.11,15.0502]
[1730548473128,11.09694677,166.13,166.09,30.1041]
[1730548478235,11.09694677,166.12,166.09,30.1041]
[1730548488249,11.09694677,166.12,166.08,21.074]
[1730548495360,11.09694677,166.13,166.08,32.17094677]
[1730548496137,11.09694677,166.09,166.07,0.6134949]
[1730548496338,11.09694677,166.08,166.07,0.6134949]
[1730548497162,104.87383077,166.08,166.07,0.6134949]
[1730548497365,155.28271785,166.08,166.07,0.6134949]
[1730548497549,110.89493077,166.08,166.07,0.6134949]
[1730548498561,110.99493077,166.08,166.07,0.6134949]
[1730548498740,155.28271785,166.08,166.07,0.6134949]
[1730548499956,155.38271785,166.08,166.07,0.6134949]
[1730548500949,155.28271785,166.08,166.07,0.6134949]
[1730548502050,110.89493077,166.08,166.07,0.6134949]
[1730548503683,155.38271785,166.08,166.07,0.6134949]
[1730548504240,155.28271785,166.08,166.07,0.6134949]
[1730548506953,110.89493077,166.08,166.07,0.6134949]
[1730548507153,34.87383077,166.08,166.07,0.6134949]
[1730548507973,11.09694677,166.08,166.07,0.6134949]
[1730548508483,131.50583385,166.08,166.07,0.6134949]
[1730548509250,110.89493077,166.08,166.07,0.6134949]
[1730548515580,11.09694677,166.08,166.07,0.6134949]
[1730548521888,11.09694677,166.1,166.07,21.6885949]
[1730548522376,11.09694677,166.11,166.07,21.6885949]
[1730548523771,11.09694677,166.1,166.07,21.6885949]
[1730548524190,11.09694677,166.08,166.07,0.6134949]
[1730548525470,17.11804677,166.08,166.07,0.6134949]
[1730548526374,11.09694677,166.08,166.07,0.6134949]
[1730548537690,11.09694677,166.09,166.07,0.6134949]
[1730548538211,104.87383077,166.08,166.07,0.6134949]
[1730548538583,11.09694677,166.08,166.07,0.6134949]
[1730548539086,11.09694677,166.09,166.07,0.6134949]
[1730548540586,11.09694677,166.1,166.07,0.6134949]
[1730548540888,6.0191,166.14,166.09,11.09694677]
[1730548541095,11.09694677,166.16,166.11,11.09694677]
[1730548541302,11.09694677,166.17,166.11,11.09694677]
[1730548542001,11.09694677,166.15,166.09,26.49764677]
[1730548542210,11.09694677,166.12,166.09,15.4007]
[1730548542386,11.09694677,166.11,166.07,21.6884949]
[1730548543086,11.09694677,166.12,166.07,21.6884949]
[1730548545506,11.09694677,166.12,166.07,32.78544167]
[1730548547312,17.11684677,166.12,166.07,15.6672949]
[1730548547508,17.11684677,166.12,166.07,21.6887949]
[1730548548303,11.09694677,166.11,166.07,21.6887949]
[1730548549792,11.09694677,166.12,166.07,21.6887949]
[1730548549991,11.09694677,166.12,166.07,32.78574167]
[1730548553208,11.09694677,166.08,166.07,0.6134949]
[1730548559501,40.89493077,166.08,166.07,0.6134949]
[1730548560398,85.28271785,166.08,166.07,0.6134949]
[1730548561296,29.797984,166.08,166.07,0.6134949]
[1730548615465,29.897984,166.08,166.07,0.6134949]
[1730548616293,29.997984,166.08,166.07,0.6134949]
[1730548617174,29.897984,166.08,166.07,0.6134949]
[1730548617381,29.797984,166.08,166.07,0.6134949]
[1730548617874,29.897984,166.08,166.07,0.6134949]
[1730548618390,29.997984,166.08,166.07,0.6134949]
[1730548619477,29.897984,166.08,166.07,0.6134949]
[1730548619677,29.797984,166.08,166.07,0.6134949]
[1730548620086,6.0211,166.08,166.07,0.6134949]
[1730548621495,29.797984,166.08,166.07,0.6134949]
[1730548670549,29.797984,166.08,166.07,9.49e-05]
[1730548670736,29.897984,166.08,166.07,9.49e-05]
[1730548671636,29.797984,166.08,166.07,9.49e-05]
[1730548671831,29.897984,166.08,166.07,9.49e-05]
[1730548674143,29.997984,166.08,166.07,9.49e-05]
[1730548674323,30.75992844,166.08,166.07,9.49e-05]
[1730548675535,30.65992844,166.08,166.07,9.49e-05]
[1730548677640,30.75992844,166.08,166.07,9.49e-05]
[1730548682323,31.52187288,166.08,166.07,9.49e-05]
[1730548684549,23.776884,166.01,165.97,23.0333]
[1730548685450,23.776884,165.99,165.97,23.0333]
[1730548686550,6.024,166.0,165.97,23.0333]
[1730548686551,23.776884,166.0,165.97,23.0333]
[1730548690230,6.023,166.03,165.97,44.1212]
[1730548690432,23.776884,166.02,165.97,44.1212]
[1730548693036,23.776884,166.03,165.97,44.1212]
[1730548702987,23.776884,166.04,165.97,44.1212]
[1730548704759,23.776884,166.05,165.97,44.1212]
[1730548707686,29.799084,166.05,165.97,44.1212]
[1730548707986,23.776884,166.05,165.97,44.1212]
[1730548708362,70.0,166.08,165.97,74.2471]
[1730548708582,76.0212,166.08,165.97,74.2471]
[1730548708792,6.021,166.09,165.98,21.5378]
[1730548709663,23.776884,166.08,165.98,21.5378]
[1730548709875,23.776884,166.08,165.99,21.0855]
[1730548710280,23.776884,166.08,165.99,51.2077]
[1730548710475,23.776884,166.06,165.99,51.2077]
[1730548712185,29.798784,166.06,165.99,51.2077]
[1730548712681,70.0,166.09,165.99,51.2077]
[1730548712885,6.0204,166.1,165.99,51.2077]
[1730548713075,70.0,166.11,166.02,6.2937]
[1730548713463,76.0202,166.11,166.03,21.0805]
[1730548714283,23.776884,166.1,166.03,21.0805]
[1730548721494,23.776884,166.1,166.05,21.0779]
[1730548725880,3.24,166.16,166.06,26.3326]
[1730548726394,6.0179,166.17,166.06,26.4326]
[1730548726985,22.1098,166.18,166.07,66.4775]
[1730548727287,70.0,166.22,166.11,20.0]
[1730548727472,76.0162,166.22,166.11,20.0]
[1730548728396,76.0162,166.22,166.12,15.2945]
[1730548728695,23.776884,166.21,166.13,21.0677]
[1730548738997,16.3408,166.23,166.13,21.0677]
[1730548739201,23.776884,166.24,166.14,20.0]
[1730548740282,23.776884,166.24,166.15,21.0652]
[1730548740481,23.776884,166.25,166.15,21.0652]
[1730548740782,29.791884,166.25,166.15,21.0652]
[1730548757906,23.776884,166.23,166.15,21.0652]
[1730548758889,70.0,166.22,166.15,21.0652]
[1730548759293,23.776884,166.21,166.15,21.0652]
[1730548760007,29.793584,166.21,166.15,15.0466]
[1730548768026,23.776884,166.19,166.13,6.0193]
[1730548768210,23.776884,166.19,166.12,27.3045531]
[1730548768518,23.776884,166.19,166.12,21.0686]
[1730548769221,6.0175,166.18,166.12,15.0489]
[1730548770215,6.0175,166.18,166.12,21.0686]
[1730548771514,29.8,166.15,166.12,21.0686]
[1730548772815,6.0175,166.18,166.12,21.0686]
[1730548781809,29.8,166.14,166.12,21.0686]
[1730548783726,29.8,166.14,166.12,15.0489]
[1730548783927,29.8,166.14,166.12,21.0686]
[1730548787131,6.0176,166.18,166.12,21.0686]
[1730548793035,6.0176,166.18,166.12,15.0489]
[1730548797736,6.0182,166.16,166.12,15.0489]
[1730548799233,6.0182,166.16,166.1,6.0204]
[1730548799825,23.776884,166.15,166.1,6.0204]
[1730548800342,23.776884,166.15,166.09,27.30656938]
[1730548801215,29.795784,166.15,166.09,27.30656938]
[1730548802466,23.776884,166.11,166.09,6.23406938]
[1730548802942,23.776884,166.11,166.06,21.0764]
[1730548803242,6.0204,166.1,166.05,12.2432282]
[1730548803428,29.8,166.09,166.05,6.0221]
[1730548803633,29.8,166.09,166.05,12.24383204]
[1730548805836,29.8,166.09,166.05,27.29953204]
[1730548807449,29.8,166.09,166.05,57.41093204]
[1730548807749,29.8,166.09,166.07,6.0732]
[1730548808528,76.0175,166.18,166.07,6.0732]
[1730548809623,23.776884,166.17,166.08,21.074]
[1730548810847,29.794784,166.17,166.08,21.074]
[1730548815755,6.0176,166.18,166.08,51.1799]
[1730548815940,6.0176,166.18,166.09,16.1415]
[1730548816136,23.776884,166.17,166.09,16.1415]
[1730548817057,29.794784,166.17,166.1,21.0715]
[1730548825553,29.794784,166.17,166.1,15.0511]
[1730548826563,23.776884,166.15,166.1,15.0511]
[1730548827275,23.776884,166.13,166.08,6.0211]
[1730548828151,29.796284,166.13,166.08,6.0211]
[1730548829257,29.8,166.1,166.08,6.0211]
[1730548830859,29.796284,166.13,166.08,6.0211]
[1730548833468,76.0193,166.14,166.08,21.074]
[1730548834460,76.0193,166.14,166.08,15.0529]
[1730548835466,76.0193,166.14,166.08,21.074]
[1730548836364,23.776884,166.13,166.07,6.22820469]
[1730548836552,23.776884,166.11,166.05,21.0774]
[1730548836762,29.8,166.09,166.05,21.0774]
[1730548840085,93.776884,166.08,166.04,12.25169882]
[1730548840258,93.776884,166.08,166.04,6.0226]
[1730548840464,23.776884,166.08,166.04,6.0226]
[1730548841180,23.776884,166.08,166.02,21.0814]
[1730548842063,29.798084,166.08,166.02,21.0814]
[1730548843187,29.8,166.09,166.02,21.0814]
[1730548848280,29.8,166.09,166.02,51.1982]
[1730548848992,23.776884,166.11,166.02,51.1982]
[1730548854590,29.796584,166.12,166.02,51.1982]
[1730548860577,15.9655,166.14,166.03,26.1397]
[1730548860788,70.0,166.15,166.03,26.1397]
[1730548860789,76.0186,166.15,166.03,26.1397]
[1730548860978,6.0182,166.16,166.05,20.0]
[1730548861302,6.0182,166.16,166.05,20.1]
[1730548862396,23.776884,166.15,166.06,51.1861]
[1730548863079,6.018,166.17,166.07,20.0]
[1730548863287,15.8797,166.18,166.07,20.0]
[1730548863506,21.8973,166.18,166.07,20.0]
[1730548864383,23.776884,166.17,166.08,21.074]
[1730548865605,29.794784,166.17,166.08,21.074]
[1730548872711,29.794784,166.17,166.08,15.0529]
[1730548872712,99.794784,166.17,166.08,15.0529]
[1730548873118,70.0,166.14,166.08,15.0529]
[1730548873295,23.776884,166.13,166.08,15.0529]
[1730548874117,29.796284,166.13,166.05,21.0779]
[1730548880116,6.0186,166.15,166.05,51.1893]
[1730548880310,23.776884,166.14,166.05,51.1893]
[1730548881300,91.8976,166.18,166.06,20.0]
[1730548881498,91.8976,166.18,166.06,20.1]
[1730548882406,91.8976,166.18,166.07,51.183]
[1730548883114,6.0179,166.18,166.09,21.6192]
[1730548884104,6.0172,166.19,166.1,21.0715]
[1730548884307,23.776884,166.18,166.1,21.0715]
[1730548886224,6.0172,166.19,166.1,21.0715]
[1730548886526,6.0172,166.19,166.1,51.1738]
[1730548888403,29.794684,166.18,166.1,51.1738]
[1730548891109,99.794684,166.18,166.1,51.1738]
[1730548892212,99.794684,166.18,166.1,45.1534]
[1730548899224,29.794684,166.18,166.1,45.1534]
[1730548902434,29.794684,166.18,166.1,67.1334]
[1730548902749,29.794684,166.18,166.1,73.1538]
[1730548913431,70.0,166.2,166.1,73.1538]
[1730548913636,76.0171,166.2,166.1,73.1538]
[1730548913846,91.5817,166.22,166.11,20.0]
[1730548914948,91.5817,166.22,166.12,21.069]
[1730548915325,23.776884,166.21,166.12,21.069]
[1730548915953,29.793384,166.21,166.12,21.069]
[1730548916339,6.016,166.23,166.13,20.0]
[1730548916649,23.776884,166.22,166.13,20.0]
[1730548917154,6.016,166.23,166.13,20.0]
[1730548917937,6.016,166.23,166.14,21.0665]
[1730548919955,93.776884,166.22,166.12,30.0987]
[1730548920934,6.0164,166.21,166.12,30.0987]
[1730548921434,93.776884,166.2,166.12,30.0987]
[1730548922754,6.0172,166.19,166.12,30.0987]
[1730548923535,29.8,166.13,166.12,30.0987]
[1730548926553,6.0172,166.19,166.12,30.0987]
[1730548928552,29.793684,166.2,166.12,30.0987]
[1730548931239,22.2544,166.21,166.12,30.0987]
[1730548944367,22.2544,166.21,166.12,51.1677]
[1730548948471,29.8,166.13,166.12,51.1677]
[1730548965578,29.8,166.13,166.11,6.23368151]
[1730548969779,40.94507604,166.13,166.11,6.23368151]
[1730548970457,29.8,166.13,166.11,6.23368151]
[1730548972658,29.8,166.13,166.1,6.0204]
[1730548974678,29.8,166.13,166.08,26.19737604]
[1730548974881,29.8,166.13,166.08,32.21847604]
[1730548975768,29.8,166.13,166.1,11.14507604]
[1730548979177,11.14507604,166.12,166.11,15.0502]
[1730548979870,40.94507604,166.13,166.11,15.0502]
[1730548980385,29.8,166.13,166.08,62.32497604]
[1730548980574,29.8,166.13,166.11,6.2861235]
[1730548980775,29.8,166.13,166.08,62.32497604]
[1730548980982,29.8,166.13,166.11,6.28572365]
[1730548981278,29.8,166.13,166.08,62.32497604]
[1730548981578,29.8,166.13,166.11,12.30559553]
[1730548981785,29.8,166.13,166.11,6.02]
[1730548982080,29.8,166.13,166.11,12.30123956]
[1730548985882,29.8,166.13,166.11,27.35143956]
[1730548993886,29.8,166.13,166.12,11.14507604]
[1730548994390,21.3854,166.21,166.12,11.14507604]
[1730548994391,32.53047604,166.21,166.12,11.14507604]
[1730548994591,26.51397604,166.21,166.15,11.14507604]
[1730548994793,26.51397604,166.21,166.16,11.14507604]
[1730548995673,15.3689,166.21,166.17,11.14507604]
[1730548996083,11.14507604,166.22,166.18,6.0175]
[1730548997778,11.14507604,166.21,166.16,11.14507604]
[1730548997998,85.9765,166.25,166.16,11.14507604]
[1730548997999,11.14507604,166.22,166.16,11.14507604]
[1730548998300,11.14507604,166.22,166.17,11.14507604]
[1730548998797,11.14507604,166.21,166.16,11.14507604]
[1730548999124,11.14507604,166.21,166.17,21.0627]
[1730548999407,11.14507604,166.2,166.17,21.0627]
[1730548999992,11.14507604,166.22,166.17,21.0627]
[1730549005498,11.14507604,166.21,166.17,21.0627]
[1730549007412,29.8,166.18,166.17,21.0627]
[1730549011093,29.8,166.18,166.17,15.0448]
[1730549012118,29.8,166.18,166.17,21.0627]
[1730549023628,29.8,166.18,166.16,11.14507604]
[1730549023629,29.8,166.18,166.15,11.14507604]
[1730549024206,29.8,166.18,166.16,11.14507604]
[1730549025529,29.8,166.18,166.17,6.0179]
[1730549027908,29.8,166.18,166.17,11.14507604]
[1730549029032,29.8,166.18,166.16,26.19037604]
[1730549029224,29.8,166.18,166.16,32.20857604]
[1730549030029,29.8,166.18,166.16,15.0453]
[1730549030529,29.8,166.18,166.16,26.19037604]
[1730549031225,29.8,166.18,166.17,11.14507604]
[1730549032209,29.8,166.18,166.17,17.16297604]
[1730549035713,29.8,166.18,166.17,84.55214004]
[1730549036122,33.51797604,166.29,166.18,44.102374]
[1730549036427,33.51797604,166.29,166.23,11.14507604]
[1730549037135,16.3593,166.29,166.25,11.14507604]
[1730549037322,27.50437604,166.29,166.24,11.14507604]
[1730549037734,27.50437604,166.29,166.24,17.16027604]
[1730549038628,33.51807604,166.29,166.24,17.16027604]
[1730549039028,33.51807604,166.29,166.24,6.0152]
[1730549041220,33.51807604,166.29,166.24,11.14507604]
[1730549043838,33.51807604,166.29,166.25,6.015]
[1730549044014,22.373,166.29,166.25,6.015]
[1730549044345,17.15827604,166.3,166.25,17.16007604]
[1730549046139,17.15757604,166.32,166.26,11.14507604]
[1730549046318,17.15757604,166.32,166.25,21.0525]
[1730549046319,17.15757604,166.32,166.27,11.14507604]
[1730549046518,32.43707604,166.33,166.28,11.14507604]
[1730549047018,21.292,166.33,166.29,11.14507604]
[1730549047439,6.012,166.34,166.3,11.14507604]
[1730549047611,6.012,166.34,166.3,10.14507604]
[1730549050726,17.15637604,166.36,166.3,16.15827604]
[1730549051622,17.15637604,166.36,166.3,10.14507604]
[1730549052920,6.0113,166.36,166.31,11.14507604]
[1730549053536,6.0113,166.36,166.32,11.14507604]
[1730549054726,6.0113,166.36,166.32,17.15747604]
[1730549055938,102.43557604,166.37,166.32,17.15747604]
[1730549056548,91.2905,166.37,166.32,17.15747604]
[1730549057138,102.43557604,166.37,166.32,17.15747604]
[1730549057439,76.0107,166.37,166.33,11.14507604]
[1730549057631,11.14507604,166.38,166.33,11.14507604]
[1730549057827,17.15507604,166.39,166.34,11.14507604]
[1730549058040,11.14507604,166.39,166.34,11.14507604]
[1730549059548,21.5934,166.4,166.35,17.15647604]
[1730549059856,6.0096,166.4,166.35,17.15647604]
[1730549060343,11.14507604,166.41,166.35,17.15647604]
[1730549060522,17.15427604,166.41,166.35,32.18497604]
[1730549062424,11.14507604,166.39,166.35,21.0399]
[1730549064731,9.64507604,166.39,166.35,21.0399]
[1730549066735,9.64507604,166.39,166.33,11.14507604]
[1730549066931,11.14507604,166.38,166.33,11.14507604]
[1730549068119,11.14507604,166.38,166.34,6.0117]
[1730549068748,17.15517604,166.39,166.34,6.0117]
[1730549071435,17.15517604,166.39,166.34,21.0411]
[1730549071634,17.15517604,166.39,166.34,32.18617604]
[1730549072245,6.0101,166.39,166.34,32.18617604]
[1730549073735,87.15467604,166.41,166.36,11.14507604]
[1730549073945,87.15467604,166.41,166.35,11.14507604]
[1730549075242,87.15467604,166.41,166.36,6.011]
[1730549076245,17.15467604,166.41,166.36,6.011]
[1730549076453,11.14507604,166.41,166.36,32.18367604]
[1730549078256,17.15397604,166.42,166.37,11.14507604]
[1730549079025,26.72887604,166.44,166.38,11.14507604]
[1730549079223,26.72887604,166.44,166.33,51.2031]
[1730549079434,26.72887604,166.44,166.39,11.14507604]
[1730549079435,11.14507604,166.44,166.39,11.14507604]
[1730549080126,70.0,166.45,166.34,0.1]